Cogmind - Beta 16 @@@ ROGUE MODE // 2025.11.01 @ 23:14:06 Player: unq Result: Self-destructed Performance ------------- Evolutions (4) 2000 Regions Visited (6) 1200 Robots Destroyed (60) 300 Value Destroyed (1836) 1836 Prototype IDs (2) 40 Alien Tech Used (0) 0 Bonus (0) 0 TOTAL SCORE: 5376 Bonus ------- None Cogmind --------- Core Integrity 387/850 Matter 125/300 Energy 100/100 System Corruption 0% Temperature Cool (0) Movement Treading (320) Ox2 Location -6/Lower Caves Parts ------- > --- POWER (2) -------- (None) > --- PROPULSION (5) --- Improved Medium Treads > --- UTILITY (5) ------ Advanced Heat Sink Huge Storage Unit Seismic Detector Core Analyzer > --- WEAPON (3) ------- (None) > --- INVENTORY (25) --- Cooling System High-capacity Matter Pod (200) Subdweller Optics Transmission Jammer ECM Suite High-powered Tractor Beam Riot Gun Improved Heavy Laser Datajack CPS Tube (1) Great Axe Peak State ------------ > --- POWER ------------ Improved Deuterium Engine F-cell Engine > --- PROPULSION ------- Light Treads Light Treads Advanced Treads Compact Wheel Subdweller Monowheel > --- UTILITY ---------- Advanced Heat Sink Huge Storage Unit Core Analyzer Improved Light Armor Plating Focal Shield > --- WEAPON ----------- Improved Heavy Laser Heavy Battle Rifle Hypervelocity Gauss Rifle > --- INVENTORY -------- Improved Ion Engine Light Nuclear Core Light Treads Light Treads Compact Wheel Subdweller Monowheel Cooling System Advanced Cooling System High-capacity Matter Pod Subdweller Optics Seismic Detector Transmission Jammer ECM Suite Improved Light Armor Plating High-powered Tractor Beam Riot Gun Advanced Plasma Cannon Heavy Phase Cannon Heavy Assault Rifle Heavy Machine Gun Grenade Launcher Subdweller Shrapnel Launcher Datajack CPS Tube Great Axe [Rating: 57] Favorites ----------- Power Ion Engine Engine Ion Engine Power Core Light Nuclear Core Propulsion Light Treads Treads Light Treads Wheel Compact Wheel Utility Huge Storage Unit Device Seismic Detector Storage Huge Storage Unit Processor Core Analyzer Protection Light Armor Plating Weapon EM Pulse Gun Energy Gun EM Pulse Gun Energy Cannon Heavy Phase Cannon Ballistic Gun Assault Rifle Launcher Grenade Launcher Special Weapon Mining Laser Slashing Weapon Great Axe Build | -11 -10 -10 -8 -6 -6 -6 ------- Run | Yrd Mat Sub Scr Fac Low Low Slots Evolved 8 | . . . . 8 . . Power 1 | . . . . 1 . . Propulsion 3 | . . . . 3 . . Utility 3 | . . . . 3 . . Weapon 1 | . . . . 1 . . Parts Attached 65 | 7 16 5 2 20 15 . Power 7 | 1 1 1 . 2 2 . Engine 6 | 1 1 1 . 2 1 . Core 1 | . . . . . 1 . Reactor . | . . . . . . . Propulsion 14 | 2 2 1 1 5 3 . Treads 9 | 2 2 . 1 3 1 . Leg . | . . . . . . . Wheel 5 | . . 1 . 2 2 . Hover . | . . . . . . . Flight . | . . . . . . . Utility 22 | 2 7 1 . 8 4 . Device 12 | 1 2 . . 6 3 . Storage 5 | 1 3 1 . . . . Processor 1 | . . . . 1 . . Hackware . | . . . . . . . Protection 4 | . 2 . . 1 1 . Artifact . | . . . . . . . Weapon 22 | 2 6 2 1 5 6 . Energy Gun 8 | 2 4 1 . 1 . . Energy Cannon 2 | . . . . . 2 . Ballistic Gun 7 | . 1 1 1 3 1 . Ballistic Cannon . | . . . . . . . Launcher 2 | . . . . . 2 . Special Weapon 2 | . 1 . . . 1 . Impact Weapon . | . . . . . . . Slashing Weapon 1 | . . . . 1 . . Piercing Weapon . | . . . . . . . Special Melee Weapon . | . . . . . . . Unidentified Prototypes 2 | . . . . 2 . . Parts Lost 34 | . 2 4 . 3 24 1 Power 5 | . . 1 . . 4 . Propulsion 10 | . . . . 2 8 . Utility 7 | . 1 1 . . 5 . Weapon 12 | . 1 2 . 1 7 1 Highest Loss Streak 10 | . 1 3 . 2 10 1 To Critical Strikes . | . . . . . . . Average Backups 18 | . 11 17 23 23 17 11 Power . | . . . . 1 1 . Propulsion 2 | . 1 3 4 2 1 . Utility 6 | . 4 5 6 7 7 6 Weapon 7 | . 4 7 11 9 5 3 Tool/Special . | . . . . . . . Unused Backups 23 | . 5 . 10 4 . 4 Power . | . . . . . . . Propulsion 5 | . 1 . 3 1 . . Utility 6 | . 1 . 2 1 . 2 Weapon 11 | . 3 . 5 2 . 1 Tool/Special 1 | . . . . . . 1 Average Slot Usage (%) 96 | . 99 99 100 95 82 36 Engine 12 | . 14 13 14 11 8 . Treads 18 | . 28 17 14 18 14 6 Wheel 9 | . . 10 14 11 9 . Device 6 | . 9 2 . 12 13 13 Storage 12 | . 16 14 14 6 5 6 Processor 1 | . . . . 5 6 6 Protection 8 | . 2 11 14 6 3 . Energy Gun 13 | . 21 19 11 4 4 . Ballistic Gun 11 | . 5 8 16 12 9 . Peak Build Rating 57 | 7 8 11 16 57 57 20 Average Rating 18 | 5 7 8 11 45 40 19 On Entrance 16 | . 7 8 11 16 53 20 Avg Prop Armor Cover (%) 11 | . . 9 9 14 15 . Naked Turns . | . . . . . . . Heaviest Build 122 | 12 32 92 93 122 121 85 Greatest Support 82 | 40 40 40 16 82 36 30 Greatest Overweight (x) 7 | . . 5 5 5 7 2 Average Overweight (x) 3 | . . 3 5 2 4 2 Largest Inventory Capacity 25 | 8 15 25 25 25 25 25 Average Capacity 21 | 7 12 22 25 25 24 25 Most Carried 25 | 3 15 25 25 25 24 11 Average Carried 18 | . 11 17 23 23 17 11 Final Capacity 25 | 8 15 25 25 25 25 25 Final Carried 25 | 3 15 25 25 24 11 11 Class Distribution -------------------- 65% | Mutant 14% | Scavenger-Gunner 12% | Scavenger-Mutant 6% | Scavenger-Tank Dominant Class ---------------- Mutant | -10/Materials Mutant | -10/Subcaves Mutant | -8/Scraptown Scavenger-Tank | -6/Factory Scavenger-Gunner | -6/Lower Caves Mutant | -6/Lower Caves Resources | -11 -10 -10 -8 -6 -6 -6 ----------- Run | Yrd Mat Sub Scr Fac Low Low Matter Collected 1685 | 270 443 127 20 567 258 . Remotely 10 | . . . . . 10 . Salvage Created 2803 | 109 696 424 . 1220 354 . Parts 151 | 12 34 23 . 56 26 . Haulers Intercepted 2 | . 2 . . . . . Recyclers Shooed 4 | . . . . 4 . . Parts Field Recycled . | . . . . . . . Retrieved Matter . | . . . . . . . Parts Self-Destructed 28 | . . 5 . . 23 . Prevented 1 | . . 1 . . . . Parts Restored . | . . . . . . . Kills | -11 -10 -10 -8 -6 -6 -6 ------- Run | Yrd Mat Sub Scr Fac Low Low Combat Hostiles Destroyed 42 | . 14 8 . 11 9 . Guns 37 | . 14 5 . 11 7 . Cannons 1 | . . . . . 1 . AOE 2 | . . 1 . . 1 . Classes Destroyed 13 | 2 5 2 . 3 1 . Worker 1 | . . . . 1 . . Tunneler 3 | 3 . . . . . . Hauler 2 | . 2 . . . . . Recycler 6 | 1 . . . 5 . . Operator 2 | . 2 . . . . . Watcher 4 | . 3 . . 1 . . Swarmer 12 | . 3 . . 5 4 . Grunt 18 | . 11 2 . 1 4 . Sentry 4 | . . 1 . 3 . . Hunter 1 | . . . . 1 . . Programmer 1 | . . . . 1 . . Behemoth 1 | . . . . . 1 . Subdweller 5 | . . 5 . . . . Best Kill Streak 9 | 4 3 2 . 9 4 . Combat Bots Only 7 | . 3 2 . 7 4 . Max Kills in Single Turn 2 | 1 1 1 . 2 1 . Gunslinging 1 | . . . . 1 . . Exploded 1 | . . 1 . . 1 . Melee . | . . . . . . . Uniques/NPCs Destroyed . | . . . . . . . Combat | -11 -10 -10 -8 -6 -6 -6 -------- Run | Yrd Mat Sub Scr Fac Low Low Hostile Shots Fired 399 | . 67 41 . 144 146 1 Missed 119 | . 16 12 . 45 46 . Hits 280 | . 51 29 . 99 100 1 Melee 1 | . . . . . . 1 Projectile 279 | . 51 29 . 99 100 . Critical Strikes 7 | . . 2 . 1 4 . Damage Taken 4007 | . 576 575 . 1085 1744 27 Core 591 | . 50 78 . 139 324 . Absorbed by Shields . | . . . . . . . Ignored by Resistances 270 | . . . . 195 75 . Core Remaining (%) 74 | 100 . . 48 . . . Volleys Fired 193 | 7 75 37 . 35 39 . Largest 3 | 2 2 2 . 3 3 . Hottest 211 | 90 100 100 . 131 211 . Shots Fired 410 | 14 141 72 . 97 86 . Gun 379 | 14 134 71 . 97 63 . Cannon 9 | . . . . . 9 . Launcher 13 | . . . . . 13 . Special 9 | . 7 1 . . 1 . Kinetic 159 | . 32 14 . 66 47 . Thermal 172 | 14 96 1 . 31 30 . Explosive 8 | . . . . . 8 . Electromagnetic 70 | . 13 57 . . . . Robot Hit Streak 20 | 3 16 11 . 20 7 . Robot Miss Streak 4 | 2 3 4 . 3 3 . Penetration Max 2 | . . . . 2 . . Secondary Targets 6 | . . . . 4 2 . Max Gunslinging Chain 1 | . . . . 1 1 . Shots Hit Robots 272 | 7 90 55 . 62 58 . Core Hits 114 | 5 37 19 . 31 22 . Critical Kills 7 | . . . . 7 . . Critical Parts Destroyed 3 | . . . . 3 . . Critical Strikes 13 | . 3 . . 10 . . Burn 3 | . 3 . . . . . Destroy 10 | . . . . 10 . . Melee Attacks . | . . . . . . . Impact . | . . . . . . . Slashing . | . . . . . . . Piercing . | . . . . . . . Sneak Attacks . | . . . . . . . Combat Hostiles . | . . . . . . . Follow-up Attacks . | . . . . . . . Damage Inflicted 4733 | 79 1109 727 . 1204 1614 . Guns 3772 | 79 1051 623 . 1204 815 . Cannons 253 | . . . . . 253 . Explosions 694 | . 44 104 . . 546 . Melee . | . . . . . . . Ramming 14 | . 14 . . . . . Kinetic 1640 | . 169 132 . 645 694 . Thermal 2175 | 79 771 104 . 559 662 . Explosive 258 | . . . . . 258 . Electromagnetic 646 | . 155 491 . . . . Impact . | . . . . . . . Slashing . | . . . . . . . Piercing . | . . . . . . . Highest Corruption . | . . . . . . . Average Corruption . | . . . . . . . Corruption Purged . | . . . . . . . Corruption Blocked . | . . . . . . . Overload Shots . | . . . . . . . Overflow Damage 14 | . 14 . . . . . Projectiles . | . . . . . . . Explosions 14 | . 14 . . . . . Melee . | . . . . . . . Knockbacks . | . . . . . . . Impact . | . . . . . . . Kinetic . | . . . . . . . Secondary . | . . . . . . . Self-Inflicted Damage 38 | . 38 . . . . . Shots 1 | . 1 . . . . . Rammed 1 | . 1 . . . . . Targets Rammed 1 | . 1 . . . . . Kicked . | . . . . . . . Crushed . | . . . . . . . Highest Temperature 347 | 64 347 11 . 54 300 . Average Temperature 70 | 30 91 8 . 15 55 . Received Heat Transfer 1387 | . 225 219 . 126 817 . Effects 2 | . 2 . . . . . Energy Bleed 1 | . 1 . . . . . Short Circuit 1 | . 1 . . . . . Siege Activations . | . . . . . . . Martial Activations . | . . . . . . . Shielding Activations . | . . . . . . . Robots Disrupted . | . . . . . . . Combat Hostiles . | . . . . . . . Robots Corrupted 2 | . . 2 . . . . Combat Hostiles 2 | . . 2 . . . . Parts Fried 4 | . . 4 . . . . Impact Corruptions . | . . . . . . . Robots Melted . | . . . . . . . Combat Hostiles . | . . . . . . . Parts Melted 12 | 2 7 1 . 1 1 . Heat Transferred 4262 | 199 2335 50 . 814 864 . Parts Sabotaged . | . . . . . . . Parts Stolen . | . . . . . . . Parts Stripped . | . . . . . . . Power Chain Reactions 2 | . 1 1 . . . . Alert | -11 -10 -10 -8 -6 -6 -6 ------- Run | Yrd Mat Sub Scr Fac Low Low Maximum Alert Level . | . . . . . . . Low Security (%) 100 | 100 100 . . 100 . . Level 1 . | . . . . . . . Level 2 . | . . . . . . . Level 3 . | . . . . . . . Level 4 . | . . . . . . . Level 5 . | . . . . . . . High Security . | . . . . . . . Max Security . | . . . . . . . Peak Influence 146 | 10 128 . . 146 . . Initial 3 | . 3 . . . . . Average 43 | 2 55 . . 22 . . Influence Increases 1236 | 20 588 70 . 348 210 . Destroy 0b10 Robot/C 740 | . 280 60 . 220 180 . Destroy 0b10 Robot/NC 90 | 20 35 . . 35 . . Destroy Leader 182 | . 80 10 . 62 30 . Successful Hack 49 | . 49 . . . . . Select Force Hacks 60 | . 60 . . . . . Disable Machine 30 | . 15 . . 15 . . Destroy Structure 10 | . 9 . . 1 . . Lose Combat Pursuer 75 | . 60 . . 15 . . Influence Decreases 1236 | 15 578 85 . 214 344 . Entered New Map 61 | . 2 8 . . 51 . Time Decay 1049 | 15 564 65 . 194 211 . Lost Part 126 | . 12 12 . 20 82 . Squads Dispatched 10 | . 7 . . 3 . . Investigation 4 | . 4 . . . . . Extermination 1 | . . . . 1 . . Reinforcement 3 | . 3 . . . . . Assault . | . . . . . . . Garrison 2 | . . . . 2 . . Intercept . | . . . . . . . Searches Triggered . | . . . . . . . Construction Impeded . | . . . . . . . Haulers Reinforced . | . . . . . . . Active Scanning Responses . | . . . . . . . Cargo Convoy Interrupts . | . . . . . . . Stealth | -11 -10 -10 -8 -6 -6 -6 --------- Run | Yrd Mat Sub Scr Fac Low Low Distress Signals 6 | . 3 . . 3 . . Communications Jammed . | . . . . . . . Distress Signals . | . . . . . . . Times Spotted 65 | . 24 10 . 21 9 1 Peak Tracking Total 10 | . 5 2 . 10 4 1 Tactical Retreats 5 | . 3 1 . 1 . . Traps | -11 -10 -10 -8 -6 -6 -6 ------- Run | Yrd Mat Sub Scr Fac Low Low Traps Triggered 1 | . 1 . . . . . Indirectly . | . . . . . . . Trap Hack Attempts . | . . . . . . . Triggered . | . . . . . . . Disarmed . | . . . . . . . Reprogrammed . | . . . . . . . Reused . | . . . . . . . Traps Extracted . | . . . . . . . Installed . | . . . . . . . Triggered . | . . . . . . . Machines | -11 -10 -10 -8 -6 -6 -6 ---------- Run | Yrd Mat Sub Scr Fac Low Low Machines Disabled 2 | . 1 . . 1 . . Max in Single Turn 1 | . 1 . . 1 . . Machines Repaired . | . . . . . . . Machines Dismantled . | . . . . . . . Machines Sabotaged . | . . . . . . . Overloaded Fab Kills . | . . . . . . . Hacking | -11 -10 -10 -8 -6 -6 -6 --------- Run | Yrd Mat Sub Scr Fac Low Low Machines Accessed 13 | . 7 . 1 4 1 . Terminals 6 | . 5 . . 1 . . Fabricators . | . . . . . . . Repair Stations . | . . . . . . . Recycling Units 4 | . 2 . . 2 . . Scanalyzers 1 | . . . . 1 . . Garrison Access . | . . . . . . . Total Hacks 28 | . 20 . 2 5 1 . Successful 17 | . 11 . 2 3 1 . Failed 11 | . 9 . . 2 . . Catastrophic 1 | . 1 . . . . . Database Lockouts . | . . . . . . . Manual 15 | . 14 . . 1 . . Terminals 18 | . 16 . . 2 . . Fabricators . | . . . . . . . Repair Stations . | . . . . . . . Recycling Units 6 | . 4 . . 2 . . Scanalyzers 1 | . . . . 1 . . Garrison Access . | . . . . . . . Terminal Hacks 5 | . 1 . 2 1 1 . Record 2 | . . . 2 . . . Open Door 1 | . . . . . 1 . Branch Access Points 1 | . . . . 1 . . Dispatch Records 1 | . 1 . . . . . Fabricator Hacks . | . . . . . . . Repair Station Hacks . | . . . . . . . Recycling Unit Hacks 3 | . 1 . . 2 . . Retrieve Components 3 | . 1 . . 2 . . Scanalyzer . | . . . . . . . Garrison Access Hacks . | . . . . . . . Unauthorized Hacks 9 | . 9 . . . . . Terminals 7 | . 7 . . . . . Botnet 2 | . 2 . . . . . Skim 5 | . 5 . . . . . Fabricators . | . . . . . . . Repair Stations . | . . . . . . . Recycling Units 2 | . 2 . . . . . Tunnel 2 | . 2 . . . . . Scanalyzers . | . . . . . . . Garrison Access . | . . . . . . . Data Cores Recovered . | . . . . . . . Used . | . . . . . . . Hacking Detections 8 | . 6 . . 2 . . Full Trace Events 1 | . 1 . . . . . Feedback Events . | . . . . . . . Feedback Blocked . | . . . . . . . Robot Schematics Acquired . | . . . . . . . Robots Built . | . . . . . . . Authchips . | . . . . . . . Time . | . . . . . . . Total Robot Build Rating . | . . . . . . . Part Schematics Acquired . | . . . . . . . Parts Built . | . . . . . . . Authchips . | . . . . . . . Time . | . . . . . . . Total Part Build Rating . | . . . . . . . Part Studies Acquired . | . . . . . . . Parts Repaired . | . . . . . . . Time . | . . . . . . . Parts Recycled . | . . . . . . . Recycled Matter . | . . . . . . . Retrieved Matter . | . . . . . . . Retrieved Components 14 | . 10 . . 4 . . Parts Scanalyzed . | . . . . . . . Part Schematics Acquired . | . . . . . . . Parts Damaged . | . . . . . . . Bothacking | -11 -10 -10 -8 -6 -6 -6 ------------ Run | Yrd Mat Sub Scr Fac Low Low Used RIF Installer . | . . . . . . . Robots Hacked . | . . . . . . . Non-combat . | . . . . . . . Combat . | . . . . . . . Robot Hacks Applied . | . . . . . . . Relay Couplers Released . | . . . . . . . Fabnet Peak Effective % . | . . . . . . . Robots Rewired . | . . . . . . . Allies Hacked . | . . . . . . . Hacks Repelled . | . . . . . . . Allies | -11 -10 -10 -8 -6 -6 -6 -------- Run | Yrd Mat Sub Scr Fac Low Low Total Allies . | . . . . . . . Largest Group . | . . . . . . . Highest-Rated Group . | . . . . . . . Highest-Rated Ally . | . . . . . . . Total Orders . | . . . . . . . Ally Attacks . | . . . . . . . Total Damage . | . . . . . . . Kills . | . . . . . . . Allies Corrupted . | . . . . . . . Allies Melted . | . . . . . . . Intel | -11 -10 -10 -8 -6 -6 -6 ------- Run | Yrd Mat Sub Scr Fac Low Low Active Infowar (turns) 2733 | 34 1244 203 . 439 809 4 Seismic 2729 | 34 1242 203 . 437 809 4 Jamming 193 | . . . . 193 . . ECM 2 | . 2 . . . . . Robot Analysis Total . | . . . . . . . Derelict Logs Recovered 7 | . . . 5 . 2 . Drone Launches . | . . . . . . . Drone Recoveries . | . . . . . . . Exploration | -11 -10 -10 -8 -6 -6 -6 ------------- Run | Yrd Mat Sub Scr Fac Low Low Turns Passed 7630 | 112 1826 1037 2518 870 1263 4 Spaces Moved 3762 | 53 799 489 1430 457 533 1 Core 16 | 6 . . . . 10 . Treads 1061 | 47 799 123 . 18 73 1 Legs . | . . . . . . . Wheels 2685 | . . 366 1430 439 450 . Hover . | . . . . . . . Flight . | . . . . . . . Fastest Speed 50 | 50 160 160 175 129 100 320 Average Speed 168 | 147 160 171 175 141 188 320 Slowest Speed 320 | 160 160 175 175 236 320 320 Overloaded Moves . | . . . . . . . Propulsion Burnouts . | . . . . . . . Robots Hopped . | . . . . . . . Potential Cave-ins . | . . . . . . . Cave-ins Triggered . | . . . . . . . Exploration Rate (%) 36 | 4 97 26 57 13 53 2 Regions Visited 6 Branch Regions 4 Pre-discovered Areas 4 | . 2 . 1 . 1 . Known Exits Taken 2 | . . . . 1 1 . Unknown Exits Taken 4 | 1 1 1 1 . . . Scrap Searched 10 | . . 4 6 . . . Spaces Dug 5 | . 5 . . . . . Terrain Destroyed 60 | . 9 6 . . 45 . Melee . | . . . . . . . Projectile 8 | . 6 . . . 2 . AOE 52 | . 3 6 . . 43 . Terrain Rammed . | . . . . . . . Walls Destroyed . | . . . . . . . Machines Disabled . | . . . . . . . Actions | -11 -10 -10 -8 -6 -6 -6 --------- Run | Yrd Mat Sub Scr Fac Low Low Total 4668 | 69 1200 613 1459 604 722 1 Wait 498 | . 264 63 . 52 119 . Move 3756 | 52 798 488 1429 456 532 1 Hop . | . . . . . . . Pick Up 73 | 3 22 15 13 13 7 . Fast Attach 18 | 7 3 . 1 5 2 . Attach 30 | . 3 4 . 8 15 . Detach 6 | . 4 . . 1 1 . Swap 50 | . 16 5 1 22 6 . Drop 43 | . 14 1 15 12 1 . Fire 193 | 7 75 37 . 35 39 . Melee . | . . . . . . . Ram . | . . . . . . . Kick . | . . . . . . . Crush 1 | . 1 . . . . . Escape Stasis . | . . . . . . . Rewire . | . . . . . . . Trap . | . . . . . . . Miscellaneous . | . . . . . . . Route ------- -11/Scrapyard -10/Materials (discovered 6 exits: [*Mat x3] / [*Min x2] / [*Sub]) -10/Subcaves (discovered 2 exits: [*Mat] / *Scr) -8/Scraptown -6/Factory (discovered 2 exits: *Low x2) -6/Lower Caves -6/Lower Caves History --------- Turn | Location | Event 47 | -11/Scrapyard | Discovered new exit (range 15) 113 | -11/Scrapyard | Entered Materials 304 | -10/Materials | Build established: Mutant 478 | -10/Materials | Discovered new exit (range 13) 631 | -10/Materials | Discovered new exit (range 12) 635 | -10/Materials | Discovered new exit (range 7) 1009 | -10/Materials | Discovered new exit (range 16) 1213 | -10/Materials | Discovered new exit (range 15) 1670 | -10/Materials | Discovered new exit (range 4) 1746 | -10/Materials | Build established: Scavenger-Mutant 1939 | -10/Materials | Entered Subcaves 1940 | -10/Subcaves | Approached by a straggling Scientist 2086 | -10/Subcaves | A swath of the cavern ceiling suddenly collapsed 2273 | -10/Subcaves | Discovered new exit (range 9) 2375 | -10/Subcaves | Lost 3 parts (1p1u1w) 2431 | -10/Subcaves | Build established: Mutant 2443 | -10/Subcaves | A swath of the cavern ceiling suddenly collapsed 2541 | -10/Subcaves | Scientist uncovered a shortcut to Scraptown 2852 | -10/Subcaves | Disturbed a concealed Subdweller 2855 | -10/Subcaves | Core integrity fell below 50% 2976 | -10/Subcaves | Entered Scraptown 3610 | -8/Scraptown | Discovered new exit (range 5) 3704 | -8/Scraptown | Scanned Subdweller tech in exchange for log data 3708 | -8/Scraptown | Learned Research stockpile data 3710 | -8/Scraptown | Learned location of Extension (-4) 3715 | -8/Scraptown | Learned Factory trap positions 3717 | -8/Scraptown | Learned location of 2 exits from Upper Caves 3802 | -8/Scraptown | Visited Bundlers 3919 | -8/Scraptown | Visited Cyclists 3968 | -8/Scraptown | Visited Symbiants 4281 | -8/Scraptown | Visited SPCMW 4342 | -8/Scraptown | Visited Shadow of the Wyrm 4635 | -8/Scraptown | Visited Spacefarers 4712 | -8/Scraptown | Visited Junk Repository 5494 | -8/Scraptown | Entered Factory 5494 | -6/Factory | Evolved 8 slots: Power x1, Propulsion x3, Utility x3, Weapon x1 5495 | -6/Factory | Loaded intel: 109 trap records 5570 | -6/Factory | Identified exit to Lower Caves 6246 | -6/Factory | Garrison activated, responded to threat 6305 | -6/Factory | Destroyed 7 combat bots 6364 | -6/Factory | Entered Lower Caves 6431 | -6/Lower Caves | Lost 3 parts (1u2w) 6796 | -6/Lower Caves | Build established: Scavenger-Gunner 7022 | -6/Lower Caves | Identified exit to Lower Caves 7187 | -6/Lower Caves | Lost 10 parts (2p5n2u1w) 7300 | -6/Lower Caves | Spotted B-75 Beast 7353 | -6/Lower Caves | Attached CPS modules to B-75 Beast. 7374 | -6/Lower Caves | Core integrity fell below 50% 7389 | -6/Lower Caves | Destroyed B-75 Beast 7407 | -6/Lower Caves | Lost 9 parts (1p3n1u4w) 7627 | -6/Lower Caves | Entered another Lower Caves area 7631 | -6/Lower Caves | Self-destructed Last Messages --------------- 07402_ Acquired Imp. Medium Treads. 07403_ Rnf. Deuterium Engine fries itself beyond repair. 07404_ Dynamic Insulation System fries itself beyond repair. 07406_ Hvy. Machine Gun fries itself beyond repair. 07418_ Acquired Huge Storage Unit. 07421_ The unstable cave ceiling collapses. 07423_ Acquired Great Axe. 07427_ Acquired Transmission Jammer. 07431_ Acquired Riot Gun. 07435_ Acquired Imp. Heavy Laser. 07446_ Acquired Corrupted Sub. Optics. 07450_ Acquired Cooling System. 07454_ Acquired 3 matter. 07457_ Acquired 4 matter. 07473_ The unstable cave ceiling collapses. 07499_ Acquired 27 matter. 07509_ Acquired 4 matter. LOCATION=LOWER CAVES GOAL=ESCAPE 07628_ Grenade Launcher destroyed. Map ----- +----------------------------------------------------+ | ?????????????????????????????????????????????????? | | ?????????????????????????????????????????????????? | | ?????????????????????????????????????????????????? | | ?????????????????????????????????????????????????? | | ?????????????????????????????????????????????????? | | ?????????????????????????????????????????????????? | | ?????????????????????????????????????????????????? | | ?????????????????????????????????????????????????? | | ?????????????????????????????????????????????????? | | ?????????????????????????????????????????????????? | | ?????????????????????????????????????????????????? | | ?????????????????????????????????????????????????? | | ?????????????????????????????????????????????????? | | ?????????????????????????????????????????????????? | | ?????????????????????????????????????????????????? | | ?????????????????????????????????????????????????? | | ?????????????????????????????????????????????????? | | ?????????????????????????????????????????????????? | | ?????????????????????????????????????????????????? | | ?????????????????????????????????????????????????? | | ??????????????????????#??????????????????????????? | | ??????????????????????# ?????????????????????????? | | ??????????????????????# ?????????????????????????? | | ??????????????????????# ???##???????????????????? | | ??????????????????????# ### ##??????????????????? | | ?????????????????????## f@ ## #?????????????? | | ?????????????????????# #???????????? | | ????????????????????# #??????????? | | ???????????????????# ## #?????????? | | ???????????????????## ##??#### #?????????? | | ????????????????????## #????????? ##?????????? | | ?????????????????????##### #?????????????????????? | | ?????????????????????????###?????????????????????? | | ?????????????????????????????????????????????????? | | ?????????????????????????????????????????????????? | | ?????????????????????????????????????????????????? | | ?????????????????????????????????????????????????? | | ?????????????????????????????????????????????????? | | ?????????????????????????????????????????????????? | | ?????????????????????????????????????????????????? | | ?????????????????????????????????????????????????? | | ?????????????????????????????????????????????????? | | ?????????????????????????????????????????????????? | | ?????????????????????????????????????????????????? | | ?????????????????????????????????????????????????? | | ?????????????????????????????????????????????????? | | ?????????????????????????????????????????????????? | | ?????????????????????????????????????????????????? | | | | | +----------------------------------------------------+ Best States ------------- Heat Dissipation 87 Energy Generation 30 Energy Capacity 690 Matter Stores 500 Matter Capacity 500 Sight Range 16 Terrain Scan Density 10 Jamming Range 12 Armor Coverage 150 Resistance: KI 20 Evasion (%) 40 Core Analysis 6 Recoil Reduction 4 Item Schematics ----------------- None Robot Schematics ------------------ None Fabricated ------------ Nothing Repaired ---------- Nothing Studied --------- None Alien Tech Used ----------------- None Achievements -------------- None Challenges ------------ None Game ------ Seed DeuteriumStrikeLegs Manual? 0 Play Time 01:21:12 Cumulative 182.7 hours Start 2025.11.01 @ 21:43:37 End 2025.11.01 @ 23:14:06 Sessions 1 Manual Loads 0 Difficulty Rogue Special Mode None Game No. 63 Rogue 63 Adventurer 0 Explorer 0 Win Type - Total 1 Types 1/0/0/0/0/0/0/0/0/0 Lore% 49 Gallery% 47 Achievement% 30 Wizard Run 0 Options --------- Layout 0 ASCII 1 Keyboard 1 Movement Arrows Keybinds 0 Fullscreen 1 Font 24/Smallcaps Map View 76x50 Zoom Use 0% Tactical HUD 1 Map Filters NONE Filters NONE Steam 1 RUN: abec2359-068f-43b9-add0-67c119097545